[Event "Titled Tuesday Blitz April 12 Early 2022"]
[White "Biletskiy, Danylo"]
[Black "Fathy, Elameir"]
[WhiteFideId "14155419"]
[BlackFideId "10600396"]
[WhiteElo "2087"]
[BlackElo "2311"]
[Result "1/2-1/2"]
[Round "05"]
[TimeControl "180+1"]
[Date "2022.04.13"]
[WhiteClock "0:01:47"]
[BlackClock "0:00:38"]

1. e4 {[%clk 0:02:56]}  c6 {[%clk 0:02:56]} 2. Ne2 {[%clk 0:02:55]}  d5 {[%clk 0:02:56]} 3. e5 {[%clk 0:02:55]}  Bf5 {[%clk 0:02:55]} 4. Ng3 {[%clk 0:02:56]}  Bg6 {[%clk 0:02:55]} 5. h4 {[%clk 0:02:56]}  h5 {[%clk 0:02:55]} 6. e6 {[%clk 0:02:56]}  fxe6 {[%clk 0:02:45]} 7. d4 {[%clk 0:02:56]}  Qd6 {[%clk 0:02:45]} 8. f4 {[%clk 0:02:55]}  Nh6 {[%clk 0:02:35]} 9. Bd3 {[%clk 0:02:50]}  Nf5 {[%clk 0:02:31]} 10. O-O {[%clk 0:02:45]}  Nd7 {[%clk 0:02:21]} 11. Nd2 {[%clk 0:02:29]}  O-O-O {[%clk 0:02:04]} 12. Nxf5 {[%clk 0:02:27]}  Bxf5 {[%clk 0:02:02]} 13. Nf3 {[%clk 0:02:26]}  g6 {[%clk 0:01:58]} 14. Ne5 {[%clk 0:02:26]}  Nxe5 {[%clk 0:01:56]} 15. fxe5 {[%clk 0:02:27]}  Qc7 {[%clk 0:01:53]} 16. Bg5 {[%clk 0:02:26]}  Bh6 {[%clk 0:01:50]} 17. c3 {[%clk 0:02:00]}  Bxg5 {[%clk 0:01:49]} 18. hxg5 {[%clk 0:02:01]}  Rdf8 {[%clk 0:01:29]} 19. Rf2 {[%clk 0:01:59]}  Bxd3 {[%clk 0:01:22]} 20. Rxf8+ {[%clk 0:02:00]}  Rxf8 {[%clk 0:01:21]} 21. Qxd3 {[%clk 0:02:01]}  Rf5 {[%clk 0:01:22]} 22. Rf1 {[%clk 0:01:57]}  Qb6 {[%clk 0:01:03]} 23. Qd2 {[%clk 0:01:53]}  Rxf1+ {[%clk 0:00:41]} 24. Kxf1 {[%clk 0:01:53]}  Qa6+ {[%clk 0:00:42]} 25. Kg1 {[%clk 0:01:50]}  Qxa2 {[%clk 0:00:42]} 26. Qc2 {[%clk 0:01:50]}  Qa1+ {[%clk 0:00:42]} 27. Kh2 {[%clk 0:01:48]}  Qe1 {[%clk 0:00:38]} 28. Qxg6 {[%clk 0:01:46]}  Qh4+ {[%clk 0:00:38]} 29. Kg1 {[%clk 0:01:46]}  Qe1+ {[%clk 0:00:38]} 30. Kh2 {[%clk 0:01:46]}  Qh4+ {[%clk 0:00:38]} 31. Kg1 {[%clk 0:01:46]}  Qe1+ {[%clk 0:00:38]} 32. Kh2 {[%clk 0:01:47]} 1/2-1/2


[Site "https://www.chess.com"]

[Event "Titled Tuesday Blitz April 12 Early 2022"]
[White "Blokhin, Sofia"]
[Black "Zia, Tahsin Tajwar"]
[WhiteFideId "4508190"]
[BlackFideId "10211888"]
[WhiteElo "1764"]
[BlackElo "1800"]
[Result "0-1"]
[Round "05"]
[TimeControl "180+1"]
[Date "2022.04.13"]
[WhiteClock "0:00:25"]
[BlackClock "0:00:48"]

1. d4 {[%clk 0:03:00]}  b6 {[%clk 0:03:00]} 2. e4 {[%clk 0:02:57]}  Bb7 {[%clk 0:03:01]} 3. Nc3 {[%clk 0:02:55]}  g6 {[%clk 0:03:01]} 4. f3 {[%clk 0:02:55]}  Bg7 {[%clk 0:03:02]} 5. Be3 {[%clk 0:02:55]}  e6 {[%clk 0:03:03]} 6. Qd2 {[%clk 0:02:53]}  h6 {[%clk 0:03:03]} 7. O-O-O {[%clk 0:02:52]}  Ne7 {[%clk 0:03:03]} 8. g4 {[%clk 0:02:50]}  d6 {[%clk 0:03:04]} 9. Kb1 {[%clk 0:02:50]}  Nd7 {[%clk 0:03:04]} 10. h4 {[%clk 0:02:48]}  a6 {[%clk 0:03:05]} 11. h5 {[%clk 0:02:44]}  g5 {[%clk 0:03:05]} 12. f4 {[%clk 0:02:34]}  gxf4 {[%clk 0:03:06]} 13. Bxf4 {[%clk 0:02:34]}  b5 {[%clk 0:03:07]} 14. Bg2 {[%clk 0:02:27]}  Nb6 {[%clk 0:03:05]} 15. Nh3 {[%clk 0:02:05]}  Nc4 {[%clk 0:03:04]} 16. Qf2 {[%clk 0:02:00]}  b4 {[%clk 0:02:56]} 17. Ne2 {[%clk 0:01:56]}  a5 {[%clk 0:02:44]} 18. Rhf1 {[%clk 0:01:55]}  a4 {[%clk 0:02:41]} 19. g5 {[%clk 0:01:42]}  Rf8 {[%clk 0:02:36]} 20. gxh6 {[%clk 0:01:39]}  Bh8 {[%clk 0:02:36]} 21. Ng5 {[%clk 0:01:37]}  c5 {[%clk 0:02:27]} 22. Nh7 {[%clk 0:01:37]}  cxd4 {[%clk 0:02:22]} 23. Nxf8 {[%clk 0:01:35]}  d3 {[%clk 0:02:15]} 24. Bg5 {[%clk 0:01:30]}  f5 {[%clk 0:02:08]} 25. Nd4 {[%clk 0:01:24]}  Qc8 {[%clk 0:01:51]} 26. cxd3 {[%clk 0:01:20]}  Nxb2 {[%clk 0:01:44]} 27. Qxb2 {[%clk 0:01:15]}  a3 {[%clk 0:01:43]} 28. Qa1 {[%clk 0:01:08]}  Nc6 {[%clk 0:01:36]} 29. Nfxe6 {[%clk 0:01:07]}  Nxd4 {[%clk 0:01:34]} 30. Nxd4 {[%clk 0:01:05]}  b3 {[%clk 0:01:31]} 31. axb3 {[%clk 0:00:59]}  a2+ {[%clk 0:01:30]} 32. Qxa2 {[%clk 0:00:55]}  Rxa2 {[%clk 0:01:23]} 33. Kxa2 {[%clk 0:00:55]}  Bxd4 {[%clk 0:01:23]} 34. Rc1 {[%clk 0:00:46]}  Qa8+ {[%clk 0:01:23]} 35. Kb1 {[%clk 0:00:45]}  Qa1+ {[%clk 0:01:09]} 36. Kc2 {[%clk 0:00:45]}  Qb2+ {[%clk 0:01:07]} 37. Kd1 {[%clk 0:00:45]}  Qxb3+ {[%clk 0:01:03]} 38. Rc2 {[%clk 0:00:40]}  Ba6 {[%clk 0:00:53]} 39. Rxf5 {[%clk 0:00:34]}  Bxd3 {[%clk 0:00:52]} 40. Bf3 {[%clk 0:00:25]}  Qxc2+ {[%clk 0:00:49]} 41. Ke1 {[%clk 0:00:25]}  Bf2# {[%clk 0:00:48]} 0-1


[Site "https://www.chess.com"]

[Event "Titled Tuesday Blitz April 12 Early 2022"]
[White "Broca Jimenez, Fernando"]
[Black "Rodchenkov, Vitaly"]
[WhiteFideId "5104742"]
[BlackFideId "4152964"]
[WhiteElo "2062"]
[BlackElo "2337"]
[Result "1-0"]
[Round "05"]
[TimeControl "180+1"]
[Date "2022.04.13"]
[WhiteClock "0:00:12"]
[BlackClock "0:00:30"]

1. e4 {[%clk 0:03:00]}  c6 {[%clk 0:02:57]} 2. d4 {[%clk 0:02:59]}  d5 {[%clk 0:02:58]} 3. Nc3 {[%clk 0:03:00]}  dxe4 {[%clk 0:02:58]} 4. Nxe4 {[%clk 0:03:00]}  Bf5 {[%clk 0:02:58]} 5. Ng3 {[%clk 0:03:00]}  Bg6 {[%clk 0:02:58]} 6. h4 {[%clk 0:03:01]}  h6 {[%clk 0:02:58]} 7. h5 {[%clk 0:03:02]}  Bh7 {[%clk 0:02:58]} 8. Nf3 {[%clk 0:03:01]}  Nd7 {[%clk 0:02:58]} 9. Bd3 {[%clk 0:03:02]}  Bxd3 {[%clk 0:02:58]} 10. Qxd3 {[%clk 0:03:02]}  e6 {[%clk 0:02:59]} 11. Bf4 {[%clk 0:03:02]}  Bb4+ {[%clk 0:02:59]} 12. Bd2 {[%clk 0:03:03]}  Qa5 {[%clk 0:02:59]} 13. c3 {[%clk 0:03:03]}  Be7 {[%clk 0:02:59]} 14. c4 {[%clk 0:03:03]}  Qc7 {[%clk 0:02:59]} 15. O-O-O {[%clk 0:02:57]}  Ngf6 {[%clk 0:02:59]} 16. Ne4 {[%clk 0:02:57]}  Nxe4 {[%clk 0:02:57]} 17. Qxe4 {[%clk 0:02:58]}  Nf6 {[%clk 0:02:58]} 18. Qe2 {[%clk 0:02:58]}  O-O {[%clk 0:02:51]} 19. Ne5 {[%clk 0:02:57]}  c5 {[%clk 0:02:50]} 20. Bc3 {[%clk 0:02:52]}  Rfd8 {[%clk 0:02:23]} 21. Kb1 {[%clk 0:02:47]}  cxd4 {[%clk 0:02:20]} 22. Rxd4 {[%clk 0:02:45]}  Rxd4 {[%clk 0:02:19]} 23. Bxd4 {[%clk 0:02:44]}  Rd8 {[%clk 0:02:19]} 24. Bc3 {[%clk 0:02:26]}  a6 {[%clk 0:02:16]} 25. Ng4 {[%clk 0:02:19]}  Nxg4 {[%clk 0:02:09]} 26. Qxg4 {[%clk 0:02:20]}  Bf8 {[%clk 0:02:05]} 27. Rh3 {[%clk 0:02:14]}  Rc8 {[%clk 0:02:04]} 28. b3 {[%clk 0:02:04]}  b5 {[%clk 0:01:57]} 29. Rg3 {[%clk 0:01:59]}  f5 {[%clk 0:01:45]} 30. Qg6 {[%clk 0:01:47]}  Qf7 {[%clk 0:01:44]} 31. Qxh6 {[%clk 0:01:30]}  bxc4 {[%clk 0:01:39]} 32. b4 {[%clk 0:01:26]}  a5 {[%clk 0:01:37]} 33. a3 {[%clk 0:01:23]}  a4 {[%clk 0:01:36]} 34. Qf4 {[%clk 0:01:18]}  Qd7 {[%clk 0:01:32]} 35. Qd2 {[%clk 0:00:24]}  Qc7 {[%clk 0:01:25]} 36. h6 {[%clk 0:00:22]}  Rd8 {[%clk 0:01:19]} 37. Qg5 {[%clk 0:00:17]}  Rd1+ {[%clk 0:01:12]} 38. Kb2 {[%clk 0:00:15]}  Qd7 {[%clk 0:00:57]} 39. Bxg7 {[%clk 0:00:13]}  Rd2+ {[%clk 0:00:40]} 40. Kc3 {[%clk 0:00:11]}  Rd3+ {[%clk 0:00:38]} 41. Rxd3 {[%clk 0:00:11]}  Qxd3+ {[%clk 0:00:37]} 42. Kb2 {[%clk 0:00:12]}  Qb3+ {[%clk 0:00:35]} 43. Kc1 {[%clk 0:00:13]}  Qxa3+ {[%clk 0:00:34]} 44. Bb2+ {[%clk 0:00:12]}  Kh7 {[%clk 0:00:30]} 45. Bxa3 {[%clk 0:00:12]} 1-0


[Site "https://www.chess.com"]

[Event "Titled Tuesday Blitz April 12 Early 2022"]
[White "Brodowski, Piotr"]
[Black "Demin, Vladimir"]
[WhiteFideId "1124480"]
[BlackFideId "4167457"]
[WhiteElo "2422"]
[BlackElo "2395"]
[Result "1-0"]
[Round "05"]
[TimeControl "180+1"]
[Date "2022.04.13"]
[WhiteClock "0:01:09"]
[BlackClock "0:00:46"]

1. e4 {[%clk 0:02:59]}  Nf6 {[%clk 0:02:35]} 2. e5 {[%clk 0:02:56]}  Nd5 {[%clk 0:02:35]} 3. d4 {[%clk 0:02:56]}  d6 {[%clk 0:02:36]} 4. Nf3 {[%clk 0:02:56]}  dxe5 {[%clk 0:02:36]} 5. Nxe5 {[%clk 0:02:56]}  g6 {[%clk 0:02:36]} 6. Be2 {[%clk 0:02:54]}  Bg7 {[%clk 0:02:35]} 7. O-O {[%clk 0:02:53]}  O-O {[%clk 0:02:36]} 8. h3 {[%clk 0:02:48]}  c5 {[%clk 0:02:26]} 9. c4 {[%clk 0:02:26]}  cxd4 {[%clk 0:02:19]} 10. Nxf7 {[%clk 0:02:23]}  Rxf7 {[%clk 0:02:15]} 11. cxd5 {[%clk 0:02:22]}  Qxd5 {[%clk 0:02:15]} 12. Nc3 {[%clk 0:02:10]}  Qc5 {[%clk 0:01:28]} 13. Ne4 {[%clk 0:02:01]}  Qd5 {[%clk 0:01:18]} 14. Ng5 {[%clk 0:01:51]}  Rf8 {[%clk 0:01:18]} 15. b3 {[%clk 0:01:39]}  Kh8 {[%clk 0:01:09]} 16. Bc4 {[%clk 0:01:34]}  Qf5 {[%clk 0:01:08]} 17. Bd3 {[%clk 0:01:33]}  Qf6 {[%clk 0:01:05]} 18. Nxh7 {[%clk 0:01:18]}  Kxh7 {[%clk 0:01:01]} 19. Qh5+ {[%clk 0:01:16]}  Kg8 {[%clk 0:01:01]} 20. Bxg6 {[%clk 0:01:15]}  Rd8 {[%clk 0:00:57]} 21. Bg5 {[%clk 0:01:13]}  Qd6 {[%clk 0:00:47]} 22. Qh7+ {[%clk 0:01:10]}  Kf8 {[%clk 0:00:46]} 23. Bh6 {[%clk 0:01:09]} 1-0


[Site "https://www.chess.com"]

[Event "Titled Tuesday Blitz April 12 Early 2022"]
[White "Bychkov, Vladimir"]
[Black "Papadiamandis, Elliot"]
[WhiteFideId "24151513"]
[BlackFideId "36074160"]
[WhiteElo "2197"]
[BlackElo "2088"]
[Result "1-0"]
[Round "05"]
[TimeControl "180+1"]
[Date "2022.04.13"]
[WhiteClock "0:01:12"]
[BlackClock "0:01:18"]

1. Nf3 {[%clk 0:03:00]}  Nf6 {[%clk 0:02:57]} 2. g3 {[%clk 0:02:57]}  d6 {[%clk 0:02:57]} 3. Bg2 {[%clk 0:02:58]}  e5 {[%clk 0:02:57]} 4. d3 {[%clk 0:02:58]}  Be7 {[%clk 0:02:58]} 5. Nbd2 {[%clk 0:02:57]}  O-O {[%clk 0:02:58]} 6. e4 {[%clk 0:02:57]}  Nc6 {[%clk 0:02:54]} 7. O-O {[%clk 0:02:57]}  d5 {[%clk 0:02:54]} 8. Re1 {[%clk 0:02:57]}  Bc5 {[%clk 0:02:51]} 9. exd5 {[%clk 0:02:54]}  Nxd5 {[%clk 0:02:51]} 10. Nxe5 {[%clk 0:02:43]}  Nxe5 {[%clk 0:02:51]} 11. Rxe5 {[%clk 0:02:43]}  c6 {[%clk 0:02:31]} 12. Re1 {[%clk 0:02:25]}  Re8 {[%clk 0:01:52]} 13. Rxe8+ {[%clk 0:02:23]}  Qxe8 {[%clk 0:01:50]} 14. Ne4 {[%clk 0:02:23]}  Bb6 {[%clk 0:01:42]} 15. d4 {[%clk 0:01:49]}  Bf5 {[%clk 0:01:38]} 16. Nd6 {[%clk 0:01:48]}  Qd7 {[%clk 0:01:38]} 17. Nxf5 {[%clk 0:01:48]}  Qxf5 {[%clk 0:01:39]} 18. c3 {[%clk 0:01:47]}  Re8 {[%clk 0:01:38]} 19. Bd2 {[%clk 0:01:44]}  c5 {[%clk 0:01:34]} 20. Qf3 {[%clk 0:01:43]}  Qc2 {[%clk 0:01:26]} 21. Re1 {[%clk 0:01:15]}  Rd8 {[%clk 0:01:18]} 22. Qxd5 {[%clk 0:01:12]}  Qxd2 {[%clk 0:01:18]} 23. Qxd8+ {[%clk 0:01:12]} 1-0


[Site "https://www.chess.com"]

[Event "Titled Tuesday Blitz April 12 Early 2022"]
[White "De Souza, Cristiano Gomes"]
[Black "Manukian, Artak"]
[WhiteFideId "2151758"]
[BlackFideId "13301373"]
[WhiteElo "2068"]
[BlackElo "2346"]
[Result "0-1"]
[Round "05"]
[TimeControl "180+1"]
[Date "2022.04.13"]
[WhiteClock "0:00:45"]
[BlackClock "0:00:52"]

1. d4 {[%clk 0:02:57]}  d5 {[%clk 0:02:58]} 2. c4 {[%clk 0:02:56]}  dxc4 {[%clk 0:02:58]} 3. Nf3 {[%clk 0:02:56]}  Nf6 {[%clk 0:02:57]} 4. e3 {[%clk 0:02:55]}  e6 {[%clk 0:02:55]} 5. Bxc4 {[%clk 0:02:55]}  c5 {[%clk 0:02:54]} 6. O-O {[%clk 0:02:52]}  a6 {[%clk 0:02:54]} 7. a4 {[%clk 0:02:52]}  Nc6 {[%clk 0:02:53]} 8. Nc3 {[%clk 0:02:51]}  cxd4 {[%clk 0:02:52]} 9. exd4 {[%clk 0:02:51]}  Be7 {[%clk 0:02:53]} 10. Re1 {[%clk 0:02:51]}  O-O {[%clk 0:02:52]} 11. d5 {[%clk 0:02:46]}  exd5 {[%clk 0:02:49]} 12. Nxd5 {[%clk 0:02:46]}  Nxd5 {[%clk 0:02:49]} 13. Bxd5 {[%clk 0:02:46]}  Bf6 {[%clk 0:02:49]} 14. Qb3 {[%clk 0:02:38]}  Na5 {[%clk 0:02:32]} 15. Qa2 {[%clk 0:02:36]}  Bg4 {[%clk 0:02:31]} 16. Bd2 {[%clk 0:02:29]}  Nc6 {[%clk 0:02:28]} 17. Rad1 {[%clk 0:02:19]}  Qb6 {[%clk 0:02:19]} 18. Be3 {[%clk 0:02:11]}  Qxb2 {[%clk 0:02:16]} 19. Qc4 {[%clk 0:02:03]}  Bxf3 {[%clk 0:02:11]} 20. Bxf3 {[%clk 0:02:01]}  Ne5 {[%clk 0:02:11]} 21. Qe4 {[%clk 0:01:57]}  Nxf3+ {[%clk 0:02:10]} 22. Qxf3 {[%clk 0:01:57]}  b5 {[%clk 0:02:03]} 23. axb5 {[%clk 0:01:56]}  Qxb5 {[%clk 0:01:58]} 24. Rb1 {[%clk 0:01:55]}  Qd3 {[%clk 0:01:55]} 25. Red1 {[%clk 0:01:54]}  Qg6 {[%clk 0:01:54]} 26. Qb7 {[%clk 0:01:52]}  a5 {[%clk 0:01:54]} 27. Bc5 {[%clk 0:01:48]}  Rfc8 {[%clk 0:01:49]} 28. Qd5 {[%clk 0:01:33]}  a4 {[%clk 0:01:47]} 29. Ba3 {[%clk 0:01:32]}  h5 {[%clk 0:01:24]} 30. g3 {[%clk 0:01:28]}  h4 {[%clk 0:01:22]} 31. Qb5 {[%clk 0:01:22]}  Qe4 {[%clk 0:01:15]} 32. Re1 {[%clk 0:01:15]}  Qf3 {[%clk 0:01:13]} 33. Re3 {[%clk 0:01:15]}  Qg4 {[%clk 0:01:07]} 34. Rbe1 {[%clk 0:01:10]}  h3 {[%clk 0:01:03]} 35. Re8+ {[%clk 0:01:07]}  Rxe8 {[%clk 0:01:01]} 36. Rxe8+ {[%clk 0:01:07]}  Rxe8 {[%clk 0:01:02]} 37. Qxe8+ {[%clk 0:01:07]}  Kh7 {[%clk 0:01:03]} 38. Kf1 {[%clk 0:00:51]}  Qd1+ {[%clk 0:01:01]} 39. Qe1 {[%clk 0:00:50]}  Qd3+ {[%clk 0:00:53]} 40. Qe2 {[%clk 0:00:47]}  Qxa3 {[%clk 0:00:54]} 41. Qh5+ {[%clk 0:00:47]}  Kg8 {[%clk 0:00:54]} 42. Qxh3 {[%clk 0:00:46]}  Qc1+ {[%clk 0:00:53]} 43. Kg2 {[%clk 0:00:46]}  a3 {[%clk 0:00:52]} 44. Qc8+ {[%clk 0:00:45]}  Qxc8 {[%clk 0:00:52]} 0-1


[Site "https://www.chess.com"]

[Event "Titled Tuesday Blitz April 12 Early 2022"]
[White "Demchenko, Anton"]
[Black "Bintang, Rasyid A. Hidayat"]
[WhiteFideId "4160258"]
[BlackFideId "7105355"]
[WhiteElo "2539"]
[BlackElo "2403"]
[Result "1-0"]
[Round "05"]
[TimeControl "180+1"]
[Date "2022.04.13"]
[WhiteClock "0:01:49"]
[BlackClock "0:01:16"]

1. e4 {[%clk 0:02:57]}  d5 {[%clk 0:02:43]} 2. exd5 {[%clk 0:02:57]}  Nf6 {[%clk 0:02:41]} 3. d4 {[%clk 0:02:57]}  Nxd5 {[%clk 0:02:41]} 4. Nf3 {[%clk 0:02:56]}  Bg4 {[%clk 0:02:40]} 5. h3 {[%clk 0:02:54]}  Bxf3 {[%clk 0:02:38]} 6. Qxf3 {[%clk 0:02:54]}  Nc6 {[%clk 0:02:38]} 7. c3 {[%clk 0:02:53]}  e6 {[%clk 0:02:37]} 8. Bb5 {[%clk 0:02:46]}  a6 {[%clk 0:02:29]} 9. Bxc6+ {[%clk 0:02:45]}  bxc6 {[%clk 0:02:30]} 10. O-O {[%clk 0:02:46]}  Be7 {[%clk 0:02:29]} 11. Rd1 {[%clk 0:02:41]}  O-O {[%clk 0:02:28]} 12. Nd2 {[%clk 0:02:31]}  Rb8 {[%clk 0:02:27]} 13. Nc4 {[%clk 0:02:27]}  c5 {[%clk 0:02:21]} 14. dxc5 {[%clk 0:02:08]}  Bxc5 {[%clk 0:02:21]} 15. b3 {[%clk 0:02:04]}  Qe7 {[%clk 0:01:42]} 16. Bb2 {[%clk 0:01:57]}  Rfd8 {[%clk 0:01:39]} 17. Ne5 {[%clk 0:01:56]}  Rb6 {[%clk 0:01:35]} 18. c4 {[%clk 0:01:56]}  Nf6 {[%clk 0:01:29]} 19. Nc6 {[%clk 0:01:52]}  Rxd1+ {[%clk 0:01:17]} 20. Rxd1 {[%clk 0:01:53]}  Qe8 {[%clk 0:01:16]} 21. Rd8 {[%clk 0:01:49]} 1-0


[Site "https://www.chess.com"]

[Event "Titled Tuesday Blitz April 12 Early 2022"]
[White "Dwilewicz, Katarzyna"]
[Black "Ljukin, Sergei"]
[WhiteFideId "1148486"]
[BlackFideId "14102200"]
[WhiteElo "1907"]
[BlackElo "2312"]
[Result "0-1"]
[Round "05"]
[TimeControl "180+1"]
[Date "2022.04.13"]
[WhiteClock "0:00:02"]
[BlackClock "0:00:23"]

1. e4 {[%clk 0:02:48]}  e6 {[%clk 0:02:51]} 2. d4 {[%clk 0:02:47]}  d5 {[%clk 0:02:52]} 3. exd5 {[%clk 0:02:45]}  exd5 {[%clk 0:02:52]} 4. Bd3 {[%clk 0:02:46]}  Nf6 {[%clk 0:02:52]} 5. Nf3 {[%clk 0:02:46]}  c5 {[%clk 0:02:52]} 6. O-O {[%clk 0:02:45]}  Nc6 {[%clk 0:02:52]} 7. Re1+ {[%clk 0:02:43]}  Be7 {[%clk 0:02:52]} 8. dxc5 {[%clk 0:02:43]}  O-O {[%clk 0:02:52]} 9. Bg5 {[%clk 0:02:41]}  Bxc5 {[%clk 0:02:51]} 10. Nc3 {[%clk 0:02:38]}  Be6 {[%clk 0:02:51]} 11. h3 {[%clk 0:02:35]}  a6 {[%clk 0:02:49]} 12. Qd2 {[%clk 0:02:30]}  b5 {[%clk 0:02:48]} 13. Qf4 {[%clk 0:02:27]}  Be7 {[%clk 0:02:43]} 14. Rad1 {[%clk 0:02:23]}  Re8 {[%clk 0:02:32]} 15. Ne2 {[%clk 0:02:08]}  h6 {[%clk 0:02:28]} 16. Bxh6 {[%clk 0:02:04]}  gxh6 {[%clk 0:02:28]} 17. Qxh6 {[%clk 0:02:05]}  Bf8 {[%clk 0:02:28]} 18. Qg5+ {[%clk 0:02:01]}  Bg7 {[%clk 0:02:28]} 19. Nf4 {[%clk 0:01:58]}  Ne4 {[%clk 0:02:21]} 20. Bxe4 {[%clk 0:01:50]}  Qxg5 {[%clk 0:02:17]} 21. Nxg5 {[%clk 0:01:51]}  dxe4 {[%clk 0:02:17]} 22. Nfxe6 {[%clk 0:01:44]}  fxe6 {[%clk 0:02:16]} 23. Rxe4 {[%clk 0:01:39]}  Rad8 {[%clk 0:01:54]} 24. Rde1 {[%clk 0:01:33]}  Rd2 {[%clk 0:01:41]} 25. Rxe6 {[%clk 0:01:07]}  Rxe6 {[%clk 0:01:39]} 26. Rxe6 {[%clk 0:01:08]}  Rxc2 {[%clk 0:01:34]} 27. Re8+ {[%clk 0:01:02]}  Bf8 {[%clk 0:01:34]} 28. Ra8 {[%clk 0:00:41]}  Nd4 {[%clk 0:01:22]} 29. b3 {[%clk 0:00:30]}  Rxa2 {[%clk 0:01:18]} 30. b4 {[%clk 0:00:24]}  Rb2 {[%clk 0:00:53]} 31. Rxa6 {[%clk 0:00:23]}  Kg7 {[%clk 0:00:33]} 32. Ra7+ {[%clk 0:00:10]}  Kg6 {[%clk 0:00:32]} 33. Ne4 {[%clk 0:00:07]}  Rxb4 {[%clk 0:00:31]} 34. Ra6+ {[%clk 0:00:02]}  Kf5 {[%clk 0:00:28]} 35. Ng3+ {[%clk 0:00:02]}  Ke5 {[%clk 0:00:28]} 36. Ra8 {[%clk 0:00:02]}  Bd6 {[%clk 0:00:28]} 37. Kh2 {[%clk 0:00:01]}  Kd5 {[%clk 0:00:27]} 38. Rd8 {[%clk 0:00:01]}  Rb2 {[%clk 0:00:23]} 39. h4 {[%clk 0:00:02]}  Ne2 {[%clk 0:00:23]} 0-1


[Site "https://www.chess.com"]

[Event "Titled Tuesday Blitz April 12 Early 2022"]
[White "Eynullayev, Atilla"]
[Black "Bongo Akanga Ndjila, Barthelemy"]
[WhiteFideId "13413570"]
[BlackFideId "10609431"]
[WhiteElo "1936"]
[BlackElo "1768"]
[Result "1-0"]
[Round "05"]
[TimeControl "180+1"]
[Date "2022.04.13"]
[WhiteClock "0:01:08"]
[BlackClock "0:01:00"]

1. e4 {[%clk 0:03:00]}  c6 {[%clk 0:02:56]} 2. d4 {[%clk 0:02:58]}  d5 {[%clk 0:02:56]} 3. e5 {[%clk 0:02:59]}  Bf5 {[%clk 0:02:55]} 4. Bd3 {[%clk 0:02:59]}  Bxd3 {[%clk 0:02:54]} 5. Qxd3 {[%clk 0:03:00]}  e6 {[%clk 0:02:54]} 6. Ne2 {[%clk 0:03:01]}  Qa5+ {[%clk 0:02:54]} 7. c3 {[%clk 0:03:02]}  Qa6 {[%clk 0:02:55]} 8. Qh3 {[%clk 0:03:01]}  Ne7 {[%clk 0:02:49]} 9. Nd2 {[%clk 0:03:02]}  Nf5 {[%clk 0:02:48]} 10. g4 {[%clk 0:03:01]}  Ne7 {[%clk 0:02:47]} 11. f4 {[%clk 0:03:01]}  c5 {[%clk 0:02:47]} 12. Nf3 {[%clk 0:03:01]}  Nbc6 {[%clk 0:02:44]} 13. Qg2 {[%clk 0:02:58]}  cxd4 {[%clk 0:02:43]} 14. cxd4 {[%clk 0:02:44]}  Qd3 {[%clk 0:02:37]} 15. O-O {[%clk 0:02:39]}  Nc8 {[%clk 0:02:25]} 16. f5 {[%clk 0:02:17]}  Be7 {[%clk 0:02:12]} 17. Nf4 {[%clk 0:02:16]}  Qa6 {[%clk 0:01:49]} 18. fxe6 {[%clk 0:01:53]}  O-O {[%clk 0:01:47]} 19. Nxd5 {[%clk 0:01:49]}  fxe6 {[%clk 0:01:47]} 20. Nc7 {[%clk 0:01:49]}  Qb6 {[%clk 0:01:44]} 21. Nxa8 {[%clk 0:01:49]}  Qb4 {[%clk 0:01:42]} 22. Be3 {[%clk 0:01:45]}  Qa5 {[%clk 0:01:37]} 23. Ng5 {[%clk 0:01:42]}  Bxg5 {[%clk 0:01:36]} 24. Rxf8+ {[%clk 0:01:41]}  Kxf8 {[%clk 0:01:35]} 25. Qf2+ {[%clk 0:01:41]}  Kg8 {[%clk 0:01:33]} 26. Bxg5 {[%clk 0:01:41]}  N8e7 {[%clk 0:01:33]} 27. Rf1 {[%clk 0:01:41]}  h6 {[%clk 0:01:31]} 28. Bxe7 {[%clk 0:01:39]}  Nxe7 {[%clk 0:01:30]} 29. Qf7+ {[%clk 0:01:39]}  Kh7 {[%clk 0:01:30]} 30. Qxe7 {[%clk 0:01:40]}  Qd5 {[%clk 0:01:29]} 31. Qf7 {[%clk 0:01:32]}  Qxd4+ {[%clk 0:01:16]} 32. Qf2 {[%clk 0:01:31]}  Qxe5 {[%clk 0:01:15]} 33. Qc2+ {[%clk 0:01:29]}  Kg8 {[%clk 0:01:14]} 34. h3 {[%clk 0:01:23]}  Qg3+ {[%clk 0:01:12]} 35. Qg2 {[%clk 0:01:23]}  Qe3+ {[%clk 0:01:12]} 36. Kh1 {[%clk 0:01:24]}  b6 {[%clk 0:01:09]} 37. Nc7 {[%clk 0:01:21]}  Qe5 {[%clk 0:01:07]} 38. Na6 {[%clk 0:01:07]}  Qb5 {[%clk 0:01:04]} 39. Nb8 {[%clk 0:01:06]}  Qe5 {[%clk 0:01:03]} 40. Nd7 {[%clk 0:01:06]}  Qd6 {[%clk 0:01:02]} 41. Rf8+ {[%clk 0:01:06]}  Kh7 {[%clk 0:01:01]} 42. Qe4+ {[%clk 0:01:07]}  g6 {[%clk 0:01:01]} 43. Rf7+ {[%clk 0:01:08]}  Kg8 {[%clk 0:01:00]} 44. Qxg6+ {[%clk 0:01:08]} 1-0


[Site "https://www.chess.com"]